bitfinex-derivatives/quotes_SOLF0:USTF0_20251125
["timestamp","ask_amount","ask_price","bid_price","bid_amount"]
[1764106711204,10.56470069,137.03,137.02,3.04]
[1764106712405,10.56470069,137.03,137.02,9.6113]
[1764106712604,5.06586317,137.03,137.02,9.6113]
[1764106712804,0.05454544,137.04,137.03,3.04]
[1764106713007,5.12022211,137.04,137.03,3.04]
[1764106713405,5.12022211,137.04,137.03,9.6109]
[1764106715805,0.05454544,137.04,137.03,9.6109]
[1764106722910,2.23454544,137.04,137.03,6.5709]
[1764106723206,0.05454544,137.04,137.03,9.6109]
[1764106728707,2.23454544,137.04,137.03,6.5709]
[1764106728911,0.05454544,137.04,137.03,9.5009]
[1764106733110,2.68582034,137.08,137.06,2.93]
[1764106733410,5.05355897,137.07,137.06,2.93]
[1764106733616,10.5394763,137.09,137.06,2.93]
[1764106733816,5.05339833,137.08,137.07,4.74477208]
[1764106734112,0.04883949,137.09,137.07,2.93]
[1764106734715,2.18,137.08,137.06,0.05266393]
[1764106734913,7.23364934,137.08,137.07,1.81439899]
[1764106735213,2.18,137.08,137.07,1.81439899]
[1764106737614,2.18,137.08,137.06,0.05266393]
[1764106737815,2.18,137.08,137.07,1.81364583]
[1764106739517,2.18,137.08,137.06,0.05266393]
[1764106739823,2.18,137.07,137.06,0.05266393]
[1764106740923,24.98,137.07,137.06,0.05266393]
[1764106741120,24.98,137.07,137.06,2.99266393]
[1764106742624,0.04883949,137.09,137.06,2.99266393]
[1764106742809,0.04883949,137.09,137.08,4.75329692]
[1764106743014,0.04883949,137.09,137.08,2.94]
[1764106743722,0.04883949,137.09,137.07,2.94]
[1764106743923,0.04883949,137.09,137.08,1.81335615]
[1764106744716,2.22883949,137.09,137.07,2.94]
[1764106744915,2.22883949,137.09,137.08,1.81327432]
[1764106745522,0.04883949,137.09,137.08,4.75327432]
[1764106745724,25.02883949,137.09,137.08,2.94]
[1764106746221,25.02883949,137.09,137.06,2.99266393]
[1764106746419,25.02883949,137.09,137.08,1.81328624]
[1764106748517,25.02883949,137.09,137.08,4.75328624]
[1764106748712,25.02883949,137.09,137.08,2.94]
[1764106750325,27.20883949,137.09,137.07,2.94]
[1764106750526,27.20883949,137.09,137.08,1.8140472]
[1764106752123,25.02883949,137.09,137.08,4.7540472]
[1764106752326,25.02883949,137.09,137.08,2.94]
[1764106752730,25.02883949,137.09,137.07,2.94]
[1764106752930,25.02883949,137.09,137.08,1.81486471]
[1764106753830,25.02883949,137.09,137.08,4.75486471]
[1764106754030,25.02883949,137.09,137.08,2.94]
[1764106754532,0.04883949,137.09,137.08,2.94]
[1764106755325,0.04883949,137.09,137.08,9.5085]
[1764106762629,5.51297221,137.12,137.11,3.02]
[1764106762826,27.14,137.13,137.11,3.02]
[1764106763635,27.18954736,137.13,137.11,3.07287557]
[1764106765036,5.03870947,137.12,137.11,3.07287557]
[1764106765531,7.19870947,137.12,137.11,0.05287557]
[1764106765735,12.71156772,137.12,137.11,0.05287557]
[1764106771941,10.55156772,137.12,137.11,3.07287557]
[1764106772236,7.19870947,137.12,137.11,0.05287557]
[1764106772424,2.16,137.12,137.11,0.05287557]
[1764106773027,7.20670048,137.12,137.11,0.05287557]
[1764106773529,12.72971814,137.12,137.11,0.05287557]
[1764106776426,0.04954736,137.13,137.11,3.07287557]
[1764106776834,31.31323305,137.16,137.13,9.586]
[1764106776835,5.52857263,137.15,137.13,9.586]
[1764106777036,10.57921709,137.14,137.13,9.586]
[1764106777225,5.05064446,137.14,137.13,9.586]
[1764106778333,0.05279709,137.15,137.11,0.05287557]
[1764106778334,0.05279709,137.15,137.14,9.5857]
[1764106778534,10.62982967,137.15,137.14,9.5857]
[1764106779136,5.10237167,137.15,137.14,9.5857]
[1764106779440,12.78731184,137.15,137.13,3.02]
[1764106779631,2.21279709,137.15,137.14,1.81573924]
[1764106779833,0.05279709,137.15,137.14,4.83573924]
[1764106780040,0.05279709,137.15,137.14,3.02]
[1764106780435,2.21279709,137.15,137.11,3.07287557]
[1764106780637,2.21279709,137.15,137.14,1.81525048]
[1764106780943,12.79294733,137.15,137.14,1.81525048]
[1764106781141,7.26638508,137.15,137.14,1.81525048]
[1764106781641,12.79294733,137.15,137.14,1.81525048]
[1764106781846,7.26638508,137.15,137.14,1.81525048]
[1764106782351,2.16,137.14,137.13,1.81525048]
[1764106782643,2.16,137.13,137.11,9.63947557]
[1764106782845,2.16,137.13,137.12,6.5666]
[1764106783537,5.58114541,137.15,137.12,6.5666]
[1764106783538,2.16,137.14,137.12,9.5866]
[1764106783745,2.16,137.14,137.13,1.81485749]
[1764106786144,7.20864929,137.14,137.13,1.81485749]
[1764106788444,2.17,137.13,137.12,1.81485749]
[1764106788640,2.17,137.13,137.11,0.05287557]
[1764106790052,2.17,137.13,137.12,1.81545128]
[1764106790232,7.21976649,137.13,137.12,1.81545128]
[1764106790545,2.17,137.13,137.12,1.81545128]
[1764106790748,2.17,137.13,137.11,2.98287557]
[1764106793137,2.17,137.13,137.12,1.81578006]
[1764106793343,7.21924022,137.13,137.12,1.81596744]
[1764106794349,12.74552784,137.13,137.12,1.81596744]
[1764106797348,10.57552784,137.13,137.12,4.74596744]
[1764106797552,2.22279709,137.15,137.13,2.93]
[1764106797756,5.11352721,137.14,137.13,2.93]
[1764106798352,0.05279709,137.15,137.13,2.93]
[1764106800247,0.05279709,137.15,137.14,2.94]
[1764106803060,0.05279709,137.15,137.14,9.5057]
[1764106807365,2.27779941,137.17,137.16,2.94]
[1764106808266,4.43779941,137.17,137.16,2.94]
[1764106810853,2.27779941,137.17,137.16,2.94]
[1764106813260,5.57358673,137.18,137.16,2.94]
[1764106813456,5.57358673,137.18,137.17,1.8149465]
[1764106813655,5.57358673,137.18,137.17,4.7549465]
[1764106813855,5.57358673,137.18,137.17,2.94]
[1764106814062,7.73358673,137.18,137.17,2.94]
[1764106814255,7.73321469,137.18,137.17,2.94]
[1764106814458,7.73321469,137.18,137.16,2.94]
[1764106814662,5.57321469,137.18,137.17,4.75500593]
[1764106814965,0.05256769,137.18,137.17,2.94]
[1764106816269,0.05256769,137.18,137.17,9.5042]
[1764106820572,5.06878265,137.21,137.2,2.96]
[1764106821672,5.06878265,137.21,137.2,9.5228]
[1764106823165,0.04978394,137.22,137.2,9.5228]
[1764106823371,0.04978394,137.22,137.21,1.81268683]
[1764106823565,5.11480359,137.22,137.21,1.81268683]
[1764106824665,7.28480359,137.22,137.21,1.81268683]
[1764106825774,0.04978394,137.22,137.21,9.5223]
[1764106826468,27.11,137.25,137.23,6.5613]
[1764106826669,27.11,137.25,137.22,2.96]
[1764106826868,27.11,137.25,137.23,1.81069113]
[1764106827071,2.17,137.24,137.23,1.81069113]
[1764106830167,0.36,137.23,137.16,2.96]
[1764106830366,0.36,137.19,137.16,2.96]
[1764106831468,0.4096474,137.19,137.17,9.5241]
[1764106832975,0.4096474,137.19,137.18,1.80921522]
[1764106833176,25.3496474,137.19,137.18,1.80921522]
[1764106833371,0.36,137.18,137.16,0.04824164]
[1764106833572,3.04029604,137.18,137.16,3.00824164]
[1764106833769,3.04029604,137.18,137.17,1.80951263]
[1764106834367,2.68029604,137.18,137.17,1.80951263]
[1764106834567,0.0496474,137.19,137.18,2.96]
[1764106835169,2.68029604,137.22,137.19,2.96]
[1764106835366,24.94,137.23,137.21,2.96]
[1764106835564,30.34900675,137.23,137.21,2.96]
[1764106835776,30.34900675,137.23,137.19,2.96]
[1764106835977,30.34900675,137.23,137.2,4.76960765]
[1764106836178,30.34900675,137.23,137.2,2.96]
[1764106836377,30.40250545,137.23,137.2,3.01101846]
[1764106836573,30.40250545,137.23,137.2,9.57341846]
[1764106837274,25.3534987,137.23,137.2,9.57341846]
[1764106838182,25.3534987,137.23,137.21,6.5622]
[1764106838482,25.3534987,137.23,137.21,9.5222]
[1764106838682,0.0534987,137.23,137.21,2.96]
[1764106839182,0.0534987,137.23,137.22,11.3317682]
[1764106839387,0.0534987,137.23,137.22,9.5218]
[1764106840078,5.87331732,137.27,137.24,2.96]
[1764106840289,5.41325227,137.26,137.24,2.96]
[1764106840483,5.05325227,137.25,137.24,2.96]
[1764106841282,0.4115907,137.26,137.24,2.96]
[1764106842391,0.4115907,137.26,137.25,6.5604]
[1764106842573,5.10663172,137.26,137.25,6.5604]
[1764106844285,0.0515907,137.26,137.25,9.5204]
[1764106844592,0.0515907,137.26,137.25,2.96]
[1764106846789,8.55361336,137.31,137.27,2.96]
[1764106846994,27.96029604,137.31,137.29,1.80920487]
[1764106847392,33.01075372,137.31,137.29,1.80920487]
[1764106847592,27.96029604,137.31,137.29,4.83920487]
[1764106847882,33.01075372,137.31,137.29,3.03]
[1764106848082,2.68029604,137.31,137.29,3.03]
[1764106848296,0.04612268,137.31,137.29,3.08204333]
[1764106848496,0.04612268,137.31,137.3,4.837312]
[1764106848694,0.04612268,137.31,137.3,3.03]
[1764106850100,112.78,137.35,137.32,3.03]
[1764106850494,0.36,137.36,137.34,3.03]
[1764106850791,25.28,137.36,137.34,3.03]
[1764106850996,25.33310921,137.36,137.34,3.0853434]
[1764106851302,25.33310921,137.36,137.34,0.0553434]
[1764106851591,0.05310921,137.36,137.34,9.6413434]
[1764106851798,0.05310921,137.36,137.35,4.83354415]
[1764106851981,0.05310921,137.36,137.35,3.03]
[1764106852795,24.92,137.39,137.37,3.03]
[1764106852997,5.51455743,137.4,137.37,3.03]
[1764106852998,25.28,137.4,137.37,3.03]
[1764106853197,0.36,137.39,137.37,3.03]
[1764106853792,0.41263665,137.39,137.37,3.08423466]
[1764106855899,0.36,137.38,137.37,0.05423466]
[1764106856907,3.09293269,137.39,137.37,0.05423466]
[1764106857489,0.05263665,137.39,137.37,3.08423466]
[1764106857691,0.05263665,137.39,137.38,4.82607993]
[1764106857887,0.05263665,137.39,137.38,3.03]
[1764106858091,0.05263665,137.39,137.37,0.05423466]
[1764106858092,0.05263665,137.39,137.37,3.08423466]
[1764106860805,0.05263665,137.39,137.38,4.86459431]
[1764106861004,5.51455743,137.44,137.39,3.07]
[1764106861305,5.87455743,137.47,137.42,3.07]
[1764106861496,24.9,137.46,137.42,3.07]
[1764106861697,24.9,137.46,137.44,3.07]
[1764106862095,0.05071289,137.46,137.44,3.11789924]
[1764106862409,0.05071289,137.46,137.45,4.86087411]
[1764106862600,0.05071289,137.46,137.45,3.07]
[1764106863099,0.05071289,137.46,137.44,3.11789924]
[1764106863100,0.41071289,137.46,137.44,3.11789924]
[1764106863300,87.44,137.5,137.45,1.78926097]
[1764106863500,4.99353906,137.53,137.46,4.85926097]
[1764106863701,24.9,137.53,137.48,1.78926097]
[1764106864006,0.36,137.52,137.49,1.78926097]
[1764106864199,0.36,137.52,137.48,3.07]
[1764106864406,0.36,137.52,137.49,4.91028254]
[1764106864407,0.0510674,137.51,137.49,4.91028254]
[1764106864605,0.0510674,137.51,137.49,3.1237021]
[1764106865002,0.4110674,137.51,137.49,0.0537021]
[1764106865207,0.0510674,137.51,137.49,4.91028235]
[1764106865507,0.0510674,137.51,137.5,3.07]
[1764106865813,0.0510674,137.51,137.49,3.1237021]
[1764106868806,0.4110674,137.51,137.49,3.1237021]
[1764106869197,0.0510674,137.51,137.49,3.1237021]
[1764106872807,0.4110674,137.51,137.49,0.0537021]
[1764106873110,0.4110674,137.51,137.49,1.82942694]
[1764106873299,0.4110674,137.51,137.49,0.0537021]
[1764106873506,0.4110674,137.51,137.49,1.82873771]
[1764106873807,0.0510674,137.51,137.49,3.1237021]
[1764106875211,5.78189632,137.56,137.5,3.07]
[1764106875512,0.36,137.55,137.51,4.84389775]
[1764106875701,0.36,137.55,137.52,3.07]
[1764106876309,0.36,137.56,137.52,3.12433288]
[1764106876509,25.26,137.56,137.52,3.12433288]
[1764106876903,0.36,137.56,137.52,3.12433288]
[1764106877111,25.26,137.56,137.52,3.12433288]
[1764106878615,0.36,137.55,137.52,3.12433288]
[1764106879119,0.36,137.55,137.52,3.01433288]
[1764106881408,0.36,137.55,137.52,0.05433288]
[1764106881606,0.36,137.55,137.52,3.01433288]
[1764106883215,5.41210006,137.58,137.52,3.01433288]
[1764106883216,5.77210006,137.58,137.52,3.01433288]
[1764106883419,24.88,137.56,137.52,3.01433288]
[1764106883618,24.88,137.56,137.52,9.56173288]
[1764106883918,24.88,137.56,137.53,2.96]
[1764106884112,24.88,137.57,137.53,2.96]
[1764106884312,24.88,137.57,137.55,2.96]
[1764106885114,25.24,137.57,137.55,2.96]
[1764106887914,24.88,137.57,137.55,2.96]
[1764106888222,30.67008304,137.58,137.55,2.96]
[1764106888418,25.24,137.58,137.55,3.00955652]
[1764106888808,30.67008304,137.58,137.55,3.00955652]
[1764106889011,25.24,137.58,137.55,3.00955652]
[1764106889221,5.43008304,137.57,137.55,3.00955652]
[1764106890116,7.01854128,137.64,137.57,2.96]
[1764106890313,0.36,137.62,137.59,4.74261137]
[1764106890621,0.36,137.62,137.6,4.74261137]
[1764106890820,0.36,137.64,137.6,2.96]
[1764106891029,5.45103353,137.63,137.62,2.96]
[1764106891715,5.45103353,137.65,137.62,2.96]
[1764106891916,30.33103353,137.66,137.64,1.78145026]
[1764106892109,24.88,137.66,137.65,1.78145026]
[1764106892308,5.45093284,137.66,137.64,2.96]
[1764106892516,25.24,137.67,137.64,2.96]
[1764106892723,5.45093214,137.66,137.64,2.96]
[1764106892914,5.45088926,137.66,137.65,1.78116751]
[1764106893310,25.24,137.67,137.65,1.78116751]
[1764106894026,0.36,137.66,137.65,1.78116751]
[1764106894214,5.81468595,137.66,137.64,1.78116751]
[1764106894420,0.36,137.66,137.63,4.74116751]
[1764106894614,0.36,137.66,137.64,1.78116751]
[1764106895221,24.88,137.66,137.64,4.74116751]
[1764106895519,1.26453488,137.69,137.64,2.96]
[1764106895716,0.36,137.73,137.67,2.96]
[1764106895920,0.36,137.71,137.69,0.04911961]
[1764106896121,5.45103026,137.7,137.69,0.04911961]
[1764106896425,6.65854128,137.75,137.69,3.00911961]
[1764106896620,8.98837063,137.76,137.69,3.00911961]
[1764106896621,3.01,137.76,137.72,2.96]
[1764106896814,3.01,137.76,137.73,1.82992911]
[1764106897120,1.26373128,137.77,137.73,3.01139879]
[1764106897320,24.94,137.78,137.75,2.96]
[1764106897625,7.92183674,137.83,137.77,2.96]
[1764106897824,3.01,137.82,137.79,0.05506599]
[1764106898216,3.01,137.81,137.79,0.05506599]
[1764106898413,27.97,137.8,137.79,0.05506599]
[1764106898724,16.20254128,137.81,137.79,0.05506599]
[1764106898925,24.98,137.8,137.79,0.05506599]
[1764106899128,3.01,137.81,137.79,0.05506599]
[1764106899321,27.99,137.81,137.79,0.05506599]
[1764106899812,24.96,137.8,137.79,0.05506599]
[1764106900818,27.97,137.8,137.79,0.05506599]
[1764106901223,27.97,137.8,137.73,2.96]
[1764106901423,6.535,137.79,137.74,1.77066456]
[1764106901623,3.01,137.79,137.75,2.96]
[1764106902231,0.0526027,137.78,137.76,0.04915334]
[1764106902624,3.0626027,137.78,137.76,0.04915334]
[1764106903026,3.0626027,137.78,137.72,2.96]
[1764106903027,3.01,137.77,137.69,2.96]
[1764106903226,3.01,137.77,137.71,4.73206758]
[1764106903529,3.01,137.77,137.73,2.96]
[1764106903917,3.01,137.77,137.67,2.96]
[1764106904230,0.05513166,137.73,137.72,1.77115519]
[1764106904528,24.96,137.73,137.72,1.77115519]
[1764106904829,3.01,137.72,137.71,0.05321369]
[1764106905023,3.01,137.72,137.67,2.96]
[1764106905233,3.01,137.72,137.68,1.77306542]
[1764106905623,3.01,137.72,137.58,101.7999]
[1764106905624,3.01,137.7,137.64,2.96]
[1764106905824,5.46067374,137.69,137.65,1.77368634]
[1764106906127,3.01,137.67,137.66,0.04800443]
[1764106906339,8.47067374,137.67,137.66,0.04800443]
[1764106908530,5.46067374,137.67,137.66,0.04800443]
[1764106908835,33.49067374,137.67,137.66,0.04800443]
[1764106911847,33.47067374,137.67,137.66,0.04800443]
[1764106912746,3.05,137.65,137.58,2.92]
[1764106912948,8.51067374,137.64,137.62,1.77982172]
[1764106913135,24.96,137.63,137.62,1.77982172]
[1764106916544,24.96,137.63,137.62,4.69982172]
[1764106916747,0.04664551,137.64,137.62,2.92]
[1764106917051,24.96,137.63,137.62,2.92]
[1764106920455,24.96,137.63,137.61,0.05316216]
[1764106920658,24.96,137.63,137.62,1.78503299]
[1764106921654,33.38699132,137.63,137.62,1.78503299]
[1764106922444,2.94,137.62,137.61,0.05316216]
[1764106922656,8.42699132,137.62,137.61,0.05316216]
[1764106924858,33.38699132,137.62,137.61,0.05316216]
[1764106925852,33.38699132,137.62,137.57,9.3948]
[1764106925853,2.94,137.61,137.54,2.85]
[1764106926049,8.42699132,137.6,137.59,1.78872353]
[1764106926256,2.94,137.59,137.54,9.3962]
[1764106926463,8.44238996,137.58,137.52,2.85]
[1764106926653,8.44238996,137.57,137.52,2.85]
[1764106926854,25.01150888,137.56,137.53,0.05492802]
[1764106927050,2.94,137.55,137.53,0.05492802]
[1764106927257,8.44564767,137.54,137.53,0.05492802]
[1764106927661,2.94,137.53,137.48,2.85]
[1764106927966,2.94,137.51,137.5,1.79283279]
[1764106928158,2.94,137.51,137.49,1.79283279]
[1764106928159,2.94,137.5,137.49,1.79283279]
[1764106928356,33.40387005,137.5,137.49,1.79283279]
[1764106929358,2.94,137.49,137.48,0.04588585]
[1764106929665,8.44387005,137.49,137.48,0.04588585]
[1764106930055,2.94,137.49,137.48,0.04588585]
[1764106930258,8.4382537,137.49,137.48,0.04588585]
[1764106932568,33.4182537,137.49,137.48,0.04588585]
[1764106932765,8.4382537,137.49,137.48,0.04588585]
[1764106932970,33.4182537,137.49,137.48,0.04588585]
[1764106933156,27.92,137.49,137.48,0.04588585]
[1764106933470,8.4382537,137.49,137.48,0.04588585]
[1764106933656,27.92,137.49,137.48,0.04588585]
[1764106933861,33.4182537,137.49,137.48,0.04588585]
[1764106934164,27.92,137.49,137.48,0.04588585]
[1764106934779,24.98,137.49,137.48,0.04588585]
[1764106939765,0.04897097,137.51,137.48,3.05588585]
[1764106939970,25.02897097,137.51,137.5,4.79164122]
[1764106940163,0.04897097,137.51,137.5,3.01]
[1764106940473,24.98,137.54,137.53,3.01]
[1764106940971,24.98,137.54,137.51,3.01]
[1764106941163,24.98,137.54,137.52,4.79083471]
[1764106941365,24.98,137.54,137.53,1.78083471]
[1764106941366,25.0304451,137.54,137.53,1.78083471]
[1764106941565,25.0304451,137.54,137.52,3.06574089]
[1764106941976,25.0304451,137.54,137.52,9.61314089]
[1764106942470,3.06,137.53,137.52,0.05574089]
[1764106943267,3.06,137.53,137.47,3.01]
[1764106943268,4.52,137.53,137.47,9.5596]
[1764106943470,3.06,137.52,137.49,1.78299019]
[1764106943766,28.06,137.51,137.49,1.78299019]
[1764106943961,28.06,137.51,137.48,6.5493]
[1764106944160,28.06,137.51,137.49,1.78310526]
[1764106944366,28.11357972,137.51,137.49,1.82955298]
[1764106944562,3.11357972,137.51,137.49,6.59514772]
[1764106944761,25.05357972,137.51,137.5,1.78416018]
[1764106944961,3.06,137.5,137.49,0.04644772]
[1764106945162,8.5582537,137.5,137.49,0.04644772]
[1764106951170,8.61728669,137.5,137.49,0.04644772]
[1764106952475,3.06,137.49,137.44,6.551]
[1764106952782,5.55728669,137.48,137.46,1.79231654]
[1764106952982,5.55728669,137.47,137.46,1.79231654]
[1764106953281,8.61728669,137.47,137.46,1.79231654]
[1764106954978,5.55728669,137.47,137.46,1.79231654]
[1764106955183,5.55728669,137.47,137.46,4.80231654]
[1764106955374,5.55728669,137.47,137.46,3.01]
[1764106957582,25.04594452,137.48,137.46,3.01]
[1764106957783,5.56242576,137.47,137.46,9.5604]
[1764106958884,5.56242576,137.47,137.45,3.06070872]
[1764106959187,5.56242576,137.46,137.45,3.06070872]
[1764106959581,8.62242576,137.46,137.45,0.05070872]
[1764106960081,5.56242576,137.46,137.45,0.05070872]
[1764106960287,5.56242576,137.46,137.45,6.60150872]
[1764106960486,5.56242576,137.46,137.45,9.61150872]
[1764106960783,28.08594452,137.48,137.45,3.06070872]
[1764106961082,0.04594452,137.48,137.47,1.79600654]
[1764106961286,30.59442005,137.48,137.45,3.06070872]
[1764106961586,5.56847553,137.47,137.45,3.06070872]
[1764106961783,0.04594452,137.48,137.47,9.5599]
[1764106961974,5.6167717,137.48,137.47,9.5599]
[1764106962178,5.6167717,137.48,137.47,3.01]
[1764106962481,5.6167717,137.48,137.46,3.01]
[1764106962786,0.04594452,137.48,137.46,3.01]
[1764106964082,0.04594452,137.48,137.47,9.5599]
[1764106964281,5.51905545,137.48,137.47,9.5599]
[1764106971092,11.0087056,137.48,137.47,9.5599]
[1764106972190,2.91,137.47,137.45,0.05070872]
[1764106972394,13.87523218,137.46,137.45,0.05070872]
[1764106973689,13.87523218,137.46,137.45,6.60160872]
[1764106974088,10.96523218,137.46,137.45,6.60160872]
[1764106976189,5.47311093,137.46,137.45,6.60160872]
[1764106976797,8.38311093,137.46,137.45,6.60160872]
[1764106979806,8.38311093,137.46,137.45,0.05070872]
[1764106980202,5.47311093,137.46,137.45,0.05070872]
[1764106980398,8.41311093,137.46,137.45,0.05070872]
[1764106980799,8.41311093,137.46,137.45,6.60160872]
[1764106981515,13.90191049,137.46,137.45,0.05070872]
[1764106983010,2.94,137.45,137.39,3.06]
[1764106983310,10.96191049,137.46,137.39,3.06]
[1764106983311,2.94,137.43,137.42,1.81236605]
[1764106983504,8.41311093,137.43,137.42,1.81236605]
[1764106984411,8.41311093,137.43,137.42,8.36466605]
[1764106984603,8.41311093,137.43,137.42,6.5523]
[1764106985204,2.94,137.42,137.41,0.04900609]
[1764106985399,8.41311093,137.42,137.41,0.04900609]
[1764106985612,5.47311093,137.42,137.41,3.10900609]
[1764106986411,5.47311093,137.42,137.41,9.66180609]
[1764106990709,0.05327685,137.44,137.43,9.6118]
[1764106991011,5.57856938,137.44,137.43,9.6118]
[1764107004830,8.58856938,137.44,137.43,6.5518]
[1764107005432,5.57856938,137.44,137.43,9.5018]
[1764107006332,8.58856938,137.44,137.43,6.5518]
[1764107007334,5.57856938,137.44,137.43,9.5018]
[1764107009027,3.01,137.43,137.42,6.5523]
[1764107009232,8.53529253,137.43,137.42,6.5523]
[1764107015342,14.02481712,137.43,137.42,6.5523]
[1764107015536,8.53529253,137.43,137.42,6.5523]
[1764107019245,14.02990096,137.43,137.42,6.5523]
[1764107019947,8.53529253,137.43,137.42,6.5523]
[1764107021648,14.0294503,137.43,137.42,6.5523]
[1764107021846,8.53529253,137.43,137.42,6.5523]
[1764107023852,14.02711917,137.43,137.42,6.5523]
[1764107025856,8.53529253,137.43,137.42,6.5523]
[1764107027549,8.53529253,137.43,137.41,0.04900609]
[1764107027749,5.52529253,137.42,137.41,3.00900609]
[1764107029257,5.52529253,137.42,137.41,9.56180609]
[1764107036767,3.42227717,137.42,137.41,9.56180609]
[1764107037071,0.05327685,137.44,137.43,9.5118]
[1764107045382,3.18327685,137.44,137.42,6.552]
[1764107045674,5.85130648,137.44,137.41,2.99900609]
[1764107045875,3.18327685,137.44,137.41,2.99900609]
[1764107046575,3.18327685,137.44,137.43,8.36562154]
[1764107046777,3.18327685,137.44,137.43,6.5518]
[1764107047578,8.67554966,137.44,137.43,6.5518]
[1764107048076,3.18327685,137.44,137.43,6.5518]
[1764107048879,3.13,137.43,137.41,6.60130609]
[1764107049070,8.60631153,137.42,137.41,6.60130609]
[1764107052393,5.47631153,137.42,137.41,9.55130609]
[1764107060601,8.34631153,137.42,137.41,6.60130609]
[1764107061101,5.47631153,137.42,137.41,9.60130609]
[1764107061999,8.34631153,137.42,137.41,0.04900609]
[1764107062198,2.87,137.41,137.39,6.5535]
[1764107062402,8.34631153,137.4,137.39,6.5535]
[1764107063094,1.153e-05,137.4,137.39,9.5535]
[1764107063294,0.0489856,137.41,137.4,9.5532]
[1764107075113,5.44391942,137.41,137.4,9.5532]
[1764107076720,0.0489856,137.41,137.4,9.5532]
[1764107094129,2.87,137.45,137.44,6.5513]
[1764107094430,13.76132152,137.45,137.44,6.5513]
[1764107096122,13.76132152,137.45,137.44,9.4613]
[1764107096318,13.82132152,137.45,137.44,6.5513]
[1764107100431,2.98,137.44,137.43,0.05045127]
[1764107100745,16.53935115,137.44,137.43,0.05045127]
[1764107101637,0.05169476,137.46,137.44,3.04]
[1764107101932,0.05169476,137.46,137.45,3.04]
[1764107102724,3.03169476,137.46,137.45,6.5509]
[1764107102926,3.03169476,137.46,137.43,0.05045127]
[1764107103236,3.03169476,137.46,137.44,1.81488302]
[1764107104335,3.03169476,137.46,137.44,8.36618302]
[1764107104833,3.03169476,137.46,137.44,6.5513]
[1764107107041,9.58209476,137.46,137.43,0.05045127]
[1764107107228,3.03169476,137.46,137.44,1.81484672]
[1764107108340,3.03169476,137.46,137.44,8.36594672]
[1764107108541,3.03169476,137.46,137.44,6.5511]
[1764107110937,3.03169476,137.46,137.45,6.5509]
[1764107112039,0.05169476,137.46,137.45,9.5909]
[1764107112338,3.03169476,137.46,137.45,6.5509]
[1764107113133,27.95169476,137.46,137.45,6.5509]
[1764107113537,2.98,137.45,137.43,0.05045127]
[1764107113739,13.77274307,137.44,137.43,0.05045127]
[1764107114041,13.77276088,137.44,137.43,0.05045127]
[1764107116037,2.98,137.43,137.38,6.5537]
[1764107116242,10.79276088,137.42,137.41,1.81607992]
[1764107116543,10.79276088,137.42,137.38,6.5537]
[1764107116744,13.77276088,137.41,137.38,9.5937]
[1764107116944,5.30903292,137.4,137.38,9.5937]
[1764107117141,5.30903292,137.39,137.38,9.64771152]
[1764107122935,8.24903292,137.39,137.38,0.05401152]
[1764107126256,33.16903292,137.39,137.38,0.05401152]
[1764107129757,33.16903292,137.39,137.38,6.60821152]
[1764107133067,5.30903292,137.39,137.38,9.57821152]
[1764107133265,24.92,137.4,137.39,9.5237]
[1764107133961,24.92,137.4,137.39,6.5537]
[1764107134163,27.86,137.4,137.39,6.5537]
[1764107138066,0.04671793,137.41,137.4,9.5232]
[1764107138570,2.98671793,137.41,137.4,6.5532]
[1764107138969,0.04671793,137.41,137.4,9.5232]
[1764107140172,2.94,137.47,137.45,9.5209]
[1764107140372,5.26155701,137.46,137.45,9.5209]
[1764107141772,0.0481098,137.47,137.45,9.5209]
[1764107142472,0.0481098,137.47,137.46,2.97]
[1764107142868,5.30755271,137.47,137.46,2.97]
[1764107143771,0.0481098,137.47,137.46,2.97]
[1764107150676,2.88,137.53,137.49,2.86]
[1764107150873,8.12665181,137.52,137.5,1.80505009]
[1764107151080,2.88,137.52,137.51,1.80505009]
[1764107151378,2.88,137.51,137.49,2.86]